bitfinex/quotes_BTCUSD_20240613
["timestamp","ask_amount","ask_price","bid_price","bid_amount"]
[1718299924985,0.1387,66660.0,66651.0,0.01]
[1718299925196,0.1387,66660.0,66648.0,0.150041]
[1718299925197,0.150017,66659.0,66650.0,0.01]
[1718299925401,0.1387,66660.0,66648.0,0.150041]
[1718299925402,0.1387,66660.0,66648.0,0.01]
[1718299925606,0.15002,66658.0,66651.0,0.00276817]
[1718299925804,0.15002,66658.0,66648.0,0.01]
[1718299925994,0.15002,66658.0,66652.0,0.00276817]
[1718299926224,0.15002,66658.0,66651.0,0.01]
[1718299926620,0.15002,66658.0,66652.0,0.00276817]
[1718299926828,0.15002,66658.0,66651.0,0.01]
[1718299926996,0.1387,66660.0,66653.0,0.00276817]
[1718299927195,0.1387,66660.0,66651.0,0.01]
[1718299927398,0.1387,66660.0,66643.0,0.0601]
[1718299927399,0.150018,66659.0,66652.0,0.01]
[1718299927819,0.003,66658.0,66652.0,0.01]
[1718299928001,0.003,66658.0,66655.0,0.01]
[1718299928179,0.1387,66660.0,66655.0,0.01]
[1718299928379,0.1387,66660.0,66657.0,0.01]
[1718299928565,0.1407,66660.0,66657.0,0.01]
[1718299929264,0.001,66658.0,66657.0,0.01]
[1718299929464,0.001,66658.0,66654.0,0.01]
[1718299929670,0.150017,66659.0,66657.0,0.01276817]
[1718299929888,0.1407,66660.0,66655.0,0.01]
[1718299930056,0.1467,66660.0,66657.0,0.001]
[1718299930266,0.000946,66658.0,66657.0,0.001]
[1718299930469,0.007946,66658.0,66657.0,0.001]
[1718299930671,0.007946,66658.0,66657.0,0.011]
[1718299930872,0.000946,66658.0,66657.0,0.00377148]
[1718299931293,0.000946,66658.0,66657.0,0.16379248]
[1718299931898,0.008946,66658.0,66657.0,0.16479248]
[1718299932106,0.008946,66658.0,66657.0,0.01377148]
[1718299932319,0.00829,66658.0,66657.0,0.01477148]
[1718299933139,0.00829,66658.0,66657.0,0.00477148]
[1718299933352,0.00029,66658.0,66657.0,0.00277148]
[1718299933556,0.00029,66658.0,66657.0,0.01277148]
[1718299933790,0.00229,66658.0,66657.0,0.01977148]
[1718299934001,0.00229,66658.0,66657.0,0.17979248]
[1718299934218,0.00129,66658.0,66657.0,0.16979248]
[1718299934423,0.00229,66658.0,66657.0,0.17679248]
[1718299934848,0.00129,66658.0,66657.0,0.16979248]
[1718299935048,0.00129,66658.0,66657.0,1.1208906]
[1718299935254,0.00029,66658.0,66657.0,1.1669906]
[1718299935429,0.00029,66658.0,66657.0,1.4770336]
[1718299935684,0.00129,66658.0,66657.0,1.78830419]
[1718299935898,9.558e-05,66658.0,66657.0,1.69821519]
[1718299936098,0.01,66666.0,66665.0,0.61571]
[1718299936322,0.01,66666.0,66665.0,0.72792293]
[1718299936525,0.01,66666.0,66665.0,0.55275849]
[1718299936704,0.01,66666.0,66665.0,0.86384863]
[1718299936944,0.01,66666.0,66665.0,0.90870523]
[1718299937362,0.01,66666.0,66665.0,0.86384863]
[1718299937600,0.01,66666.0,66665.0,1.17385563]
[1718299937819,0.01,66666.0,66665.0,1.49386263]
[1718299938037,0.01,66666.0,66665.0,1.38661223]
[1718299938243,0.01,66666.0,66665.0,1.36575563]
[1718299938446,0.011,66666.0,66665.0,1.04466549]
[1718299938654,0.01,66666.0,66665.0,1.03066549]
[1718299938860,0.01,66666.0,66665.0,1.05466549]
[1718299939079,0.011,66666.0,66665.0,1.06866549]
[1718299939254,0.011,66666.0,66665.0,1.05466549]
[1718299939703,0.011,66666.0,66665.0,1.06866549]
[1718299940321,0.011,66666.0,66665.0,1.05466549]
[1718299940532,0.01,66666.0,66665.0,1.04066549]
[1718299940961,0.011,66666.0,66665.0,1.05466549]
[1718299941422,0.011,66666.0,66665.0,1.34467249]
[1718299941684,0.011,66666.0,66665.0,1.37468249]
[1718299941885,0.011,66666.0,66665.0,1.34467249]
[1718299941886,0.01,66666.0,66665.0,1.34467249]
[1718299942098,0.011,66666.0,66665.0,1.36867249]
[1718299942306,0.011,66666.0,66665.0,1.35467249]
[1718299942524,0.01,66666.0,66665.0,1.04066549]
[1718299942744,0.01,66666.0,66665.0,1.05466549]
[1718299942963,0.01,66666.0,66665.0,2.45351168]
[1718299943175,0.01,66666.0,66665.0,2.64532323]
[1718299943392,0.01,66666.0,66665.0,2.55571704]
[1718299943601,0.01,66666.0,66665.0,2.65932323]
[1718299943817,0.01,66666.0,66665.0,2.44181704]
[1718299944040,0.149927,66699.0,66665.0,2.44181704]
[1718299944041,0.1417,66701.0,66693.0,0.01]
[1718299944288,0.1417,66701.0,66692.0,0.01]
[1718299944509,0.15961804,66701.0,66692.0,0.01]
[1718299944760,0.15961804,66701.0,66695.0,0.01]
[1718299944981,0.15961804,66701.0,66692.0,0.149941]
[1718299945193,0.15961804,66701.0,66695.0,0.01]
[1718299945404,0.15961804,66701.0,66696.0,0.00264758]
[1718299945609,0.15961804,66701.0,66695.0,0.01]
[1718299945830,0.15961804,66701.0,66696.0,0.00264758]
[1718299946067,0.1417,66701.0,66700.0,0.159925]
[1718299946511,0.0635,66705.0,66704.0,0.149914]
[1718299946723,0.0635,66705.0,66700.0,0.00264484]
[1718299946939,0.0635,66705.0,66704.0,0.00257033]
[1718299947149,0.000946,66706.0,66703.0,0.01]
[1718299947359,0.000946,66706.0,66705.0,0.149913]
[1718299947566,0.000946,66706.0,66705.0,0.01]
[1718299948154,0.000946,66706.0,66705.0,0.01257033]
[1718299948779,0.006946,66706.0,66705.0,0.00257033]
[1718299949603,0.010946,66706.0,66705.0,0.00257033]
[1718299949809,0.010946,66706.0,66701.0,0.149922]
[1718299950013,0.010946,66706.0,66705.0,0.00257033]
[1718299950219,0.010946,66706.0,66703.0,0.01]
[1718299950434,0.010946,66706.0,66699.0,0.159927]
[1718299950660,0.010946,66706.0,66704.0,0.00257033]
[1718299950864,0.010946,66706.0,66702.0,0.01]
[1718299951064,0.010946,66706.0,66703.0,0.01]
[1718299951298,0.010946,66706.0,66703.0,0.16248833]
[1718299951510,0.004946,66706.0,66703.0,0.16248833]
[1718299951709,0.004946,66706.0,66704.0,0.01]
[1718299952263,0.004946,66706.0,66705.0,0.00257033]
[1718299952672,0.000946,66706.0,66705.0,0.00257033]
[1718299952868,0.000946,66706.0,66705.0,0.01257033]
[1718299953080,0.000946,66706.0,66705.0,0.16248333]
[1718299953476,0.003946,66706.0,66705.0,0.16248333]
[1718299954789,0.003946,66706.0,66705.0,0.66673026]
[1718299955179,0.000946,66706.0,66705.0,0.67673026]
[1718299955363,0.000946,66706.0,66705.0,0.66673026]
[1718299955364,0.006946,66706.0,66705.0,0.66673026]
[1718299955600,0.006946,66706.0,66705.0,0.36690326]
[1718299955799,0.006946,66706.0,66705.0,0.29680326]
[1718299955950,0.000946,66706.0,66705.0,0.00257033]
[1718299956150,0.142946,66706.0,66705.0,0.00257033]
[1718299956398,0.143946,66706.0,66705.0,0.01657033]
[1718299956584,0.143946,66706.0,66705.0,0.028]
[1718299956782,0.142946,66706.0,66705.0,0.014]
[1718299957034,0.142946,66706.0,66697.0,0.1]
[1718299957035,0.142946,66706.0,66699.0,0.01]
[1718299957208,0.292859,66706.0,66705.0,0.00247809]
[1718299957406,0.292859,66706.0,66705.0,0.004]
[1718299957977,0.149935,66696.0,66692.0,0.4828]
[1718299958193,0.149925,66700.0,66694.0,0.01]
[1718299958601,0.149918,66703.0,66694.0,0.01]
[1718299959025,0.149918,66703.0,66692.0,0.4828]
[1718299959244,0.149918,66703.0,66694.0,0.01]
[1718299959703,0.149918,66703.0,66699.0,0.009]
[1718299960135,0.01,66704.0,66699.0,0.009]
[1718299960371,0.01,66701.0,66692.0,0.4728]
[1718299960599,0.149939,66694.0,66692.0,0.4728]
[1718299960820,0.07215996,66704.0,66692.0,0.4728]
[1718299960821,0.29194,66693.0,66692.0,0.4728]
[1718299961038,0.142,66693.0,66692.0,0.4728]
[1718299961256,0.142,66693.0,66692.0,0.4828]
[1718299961740,0.142,66693.0,66692.0,0.4928]
[1718299961965,0.001,66703.0,66696.0,0.01]
[1718299961966,0.1422,66702.0,66696.0,0.01]
[1718299962214,0.1422,66702.0,66692.0,0.4828]
[1718299962215,0.1422,66702.0,66698.0,0.149927]
[1718299962667,0.1422,66702.0,66699.0,0.149925]
[1718299962884,0.1422,66702.0,66699.0,0.152428]
[1718299963106,0.1422,66702.0,66699.0,0.162428]
[1718299963315,0.1422,66702.0,66701.0,0.01]
[1718299963918,0.1422,66702.0,66701.0,0.012503]
[1718299964810,0.1422,66702.0,66701.0,0.162425]
[1718299965021,0.1422,66702.0,66701.0,0.159922]
[1718299965228,0.1422,66702.0,66701.0,0.162425]
[1718299965652,0.1422,66702.0,66701.0,0.002503]
[1718299965860,0.1422,66702.0,66699.0,0.01]
[1718299966071,0.1442,66702.0,66701.0,0.15241842]
[1718299966273,0.1442,66702.0,66701.0,0.149922]
[1718299966473,0.1452,66702.0,66701.0,0.15241842]
[1718299966897,0.001,66702.0,66701.0,0.16241842]
[1718299967162,0.139646,66706.0,66704.0,0.149914]
[1718299967800,0.139646,66706.0,66705.0,0.00249642]
[1718299968006,0.139646,66706.0,66705.0,0.01249642]
[1718299968226,0.139646,66706.0,66705.0,0.00249642]
[1718299968438,0.000946,66706.0,66705.0,0.00249642]
[1718299968874,0.000946,66706.0,66704.0,0.159914]
[1718299969097,0.000946,66706.0,66705.0,0.159913]
[1718299969544,0.000946,66706.0,66705.0,0.16239439]
[1718299969759,0.004946,66706.0,66705.0,0.16239439]
[1718299970213,0.003946,66706.0,66705.0,0.16239439]
[1718299970590,0.005946,66706.0,66705.0,0.16239439]
[1718299971428,0.003946,66706.0,66705.0,0.60654132]
[1718299971799,0.003946,66706.0,66705.0,0.94637832]
[1718299972003,0.003946,66706.0,66705.0,0.95744966]
[1718299972616,0.000946,66706.0,66705.0,0.95744966]
[1718299972850,0.000946,66706.0,66705.0,0.64762266]
[1718299973061,0.001946,66706.0,66705.0,0.67162266]
[1718299973260,0.001946,66706.0,66705.0,0.97544966]
[1718299973491,0.000946,66706.0,66705.0,0.96144966]
[1718299973619,0.000946,66706.0,66705.0,0.97144966]
[1718299973819,0.001946,66706.0,66705.0,0.97144966]
[1718299974231,0.000946,66706.0,66705.0,0.95744966]
[1718299974437,0.000946,66706.0,66705.0,0.98144966]
[1718299974668,0.001946,66706.0,66705.0,0.99544966]
[1718299974873,0.001946,66706.0,66705.0,1.29527666]
[1718299975072,0.001946,66706.0,66705.0,1.31827666]
[1718299975431,0.001946,66706.0,66705.0,1.35827666]
[1718299975631,0.001946,66706.0,66705.0,1.35427666]
[1718299975865,0.001946,66706.0,66705.0,1.34427666]
[1718299976071,0.001946,66706.0,66705.0,1.35427666]
[1718299976274,0.000946,66706.0,66705.0,2.40127366]
[1718299976493,0.000946,66706.0,66705.0,2.39879227]
[1718299976713,0.001946,66706.0,66705.0,3.35148127]
[1718299976919,0.00940501,66722.0,66721.0,0.839387]
[1718299977146,0.00940501,66722.0,66721.0,1.74814104]
[1718299977356,0.00940501,66722.0,66721.0,1.73814104]
[1718299977562,0.00940501,66722.0,66721.0,1.74814104]
[1718299977762,0.00940501,66722.0,66721.0,1.43838604]
[1718299977964,0.00940501,66722.0,66721.0,1.43837745]
[1718299978164,0.00940501,66722.0,66721.0,0.204]
[1718299978364,0.00940501,66722.0,66721.0,0.353877]
[1718299978739,0.00940501,66722.0,66721.0,0.339877]
[1718299979166,0.00940501,66722.0,66721.0,0.19]
[1718299979494,0.00940501,66722.0,66721.0,0.024]
[1718299979738,0.00940501,66722.0,66721.0,0.014]
[1718299979934,0.00940501,66722.0,66721.0,0.028]
[1718299979935,0.22448001,66722.0,66721.0,0.028]
[1718299980140,0.22348001,66722.0,66721.0,0.014]
[1718299980350,0.61013101,66722.0,66721.0,0.014]
[1718299980560,0.30038001,66722.0,66721.0,0.014]
[1718299980779,0.30138001,66722.0,66721.0,0.014]
[1718299981009,0.15050501,66722.0,66717.0,0.01]
[1718299981225,0.15050501,66722.0,66721.0,0.014]
[1718299981435,0.00940501,66722.0,66721.0,0.173877]
[1718299981842,0.00940501,66722.0,66721.0,0.150877]
[1718299982044,0.00940501,66722.0,66721.0,0.011]
[1718299982327,0.00940501,66722.0,66721.0,0.012]
[1718299982747,0.00940501,66722.0,66721.0,0.011]
[1718299982967,0.00940501,66722.0,66721.0,0.160877]
[1718299983398,0.00940501,66722.0,66721.0,0.159877]
[1718299983830,0.01040501,66722.0,66721.0,0.173877]
[1718299984028,0.00940501,66722.0,66721.0,0.159877]
[1718299984448,0.00940501,66722.0,66721.0,0.174877]
[1718299984855,0.00940501,66722.0,66721.0,0.160877]
[1718299985265,0.00940501,66722.0,66721.0,0.161877]
[1718299986219,0.00940501,66722.0,66721.0,0.171877]
[1718299986420,0.00940501,66722.0,66721.0,0.70155193]
[1718299986627,0.00940501,66722.0,66721.0,1.56116193]
[1718299986868,0.00013577,66722.0,66721.0,2.27254207]
[1718299987074,0.00940501,66733.0,66725.0,1.187185]
[1718299987274,0.00940501,66733.0,66725.0,2.37864207]
[1718299987536,0.00940501,66733.0,66725.0,2.50275107]
[1718299987735,0.00940501,66733.0,66725.0,2.38144507]
[1718299987934,0.00940501,66733.0,66725.0,2.68118207]
[1718299988547,0.00940501,66733.0,66725.0,2.74802724]
[1718299988956,0.00940501,66733.0,66725.0,2.76202724]
[1718299989358,0.00940501,66733.0,66725.0,2.69518207]
[1718299989644,0.00940501,66733.0,66725.0,1.98068707]
[1718299989861,0.0044306,66733.0,66732.0,0.01]
[1718299990080,0.0044306,66733.0,66732.0,0.30417293]
[1718299990295,0.0044306,66733.0,66732.0,0.40417293]
[1718299990748,0.0044306,66733.0,66732.0,0.41417293]
[1718299990958,0.0044306,66733.0,66732.0,0.71387893]
[1718299991396,0.0054306,66733.0,66732.0,0.74187893]
[1718299991604,0.0054306,66733.0,66732.0,0.94187893]
[1718299991821,0.0054306,66733.0,66732.0,1.33158493]
[1718299992029,0.0054306,66733.0,66732.0,1.35458493]
[1718299992481,0.0054306,66733.0,66732.0,2.08412089]
[1718299992697,0.0054306,66733.0,66732.0,2.08756093]
[1718299992900,0.0054306,66733.0,66732.0,1.47814893]
[1718299993097,0.0054306,66733.0,66732.0,1.78785493]
[1718299993550,0.0054306,66733.0,66732.0,1.88785493]
[1718299994029,0.0054306,66733.0,66732.0,2.19858254]
[1718299994236,0.0054306,66733.0,66732.0,2.49828854]
[1718299994675,0.0054306,66733.0,66732.0,1.13044893]
[1718299994880,0.0054306,66733.0,66732.0,1.30834893]
[1718299995125,0.0054306,66733.0,66732.0,0.95864293]
[1718299995332,0.0054306,66733.0,66732.0,0.51217293]
[1718299995541,0.0054306,66733.0,66732.0,0.43217293]
[1718299995749,0.0054306,66733.0,66732.0,0.138]
[1718299995971,0.0054306,66733.0,66732.0,0.038]
[1718299996625,0.0054306,66733.0,66732.0,0.028]
[1718299997033,0.0054306,66733.0,66732.0,0.187853]
[1718299998407,0.0054306,66733.0,66732.0,0.70197893]
[1718299998626,0.0054306,66733.0,66732.0,1.00168493]
[1718299998837,0.0054306,66733.0,66732.0,1.23728493]
[1718299999078,0.0054306,66733.0,66732.0,1.26028493]
[1718299999488,0.0054306,66733.0,66732.0,1.77102799]
[1718300000500,0.0054306,66733.0,66732.0,1.46028493]
[1718300000909,0.0054306,66733.0,66732.0,1.77102755]
[1718300002391,0.0054306,66733.0,66732.0,1.89532257]
[1718300002618,0.0054306,66733.0,66732.0,1.88532257]
[1718300002822,0.0054306,66733.0,66732.0,1.74962257]
[1718300002996,0.0054306,66733.0,66732.0,0.75646795]
[1718300003397,0.0054306,66733.0,66732.0,0.76245995]
[1718300004050,0.0054306,66733.0,66732.0,1.07216595]
[1718300004471,0.0054306,66733.0,66732.0,0.64816493]
[1718300004691,0.0054306,66733.0,66732.0,0.77247387]
[1718300005596,0.0054306,66733.0,66732.0,1.43188587]
[1718300005843,0.0054306,66733.0,66732.0,1.90134357]
[1718300006287,0.0054306,66733.0,66732.0,1.91929693]
[1718300006956,0.0054306,66733.0,66732.0,3.69197457]
[1718300007151,0.0054306,66733.0,66732.0,3.43898857]
[1718300008336,0.0054306,66733.0,66732.0,3.41380457]
[1718300008848,0.0054306,66733.0,66732.0,3.41378568]
[1718300009927,6.2e-07,66737.0,66736.0,0.26001]
[1718300010116,6.2e-07,66737.0,66736.0,1.36484768]
[1718300010445,6.2e-07,66737.0,66736.0,3.73385037]
[1718300010575,6.2e-07,66737.0,66736.0,5.25990665]
[1718300010771,6.2e-07,66737.0,66736.0,3.3105198]
[1718300010979,6.2e-07,66737.0,66736.0,2.5413298]
[1718300011180,6.2e-07,66737.0,66736.0,2.49685568]
[1718300011784,0.00100062,66737.0,66736.0,2.57757373]
[1718300011992,6.2e-07,66737.0,66736.0,3.22554368]
[1718300012282,0.009416,66747.0,66746.0,1.672287]
[1718300012596,0.009416,66747.0,66746.0,2.55255468]
[1718300012770,0.009416,66747.0,66746.0,2.85219768]
[1718300013039,0.009416,66747.0,66746.0,5.15225668]
[1718300013242,0.009416,66747.0,66746.0,4.21318268]
[1718300013496,0.073116,66747.0,66746.0,0.95919868]
[1718300013712,0.009416,66747.0,66746.0,1.25884168]
[1718300014311,0.009416,66747.0,66746.0,0.88713014]
[1718300014437,0.151616,66747.0,66746.0,0.12429005]
[1718300014648,0.151616,66747.0,66736.0,0.07250478]
[1718300014649,0.151616,66747.0,66745.0,0.12429005]
[1718300014847,0.151616,66747.0,66746.0,0.13429005]
[1718300015051,0.151616,66747.0,66746.0,0.01]
[1718300015278,0.151616,66747.0,66746.0,0.14829731]
[1718300015810,0.151616,66747.0,66746.0,0.13829731]
[1718300016010,0.151616,66747.0,66746.0,0.12429731]
[1718300016143,0.151616,66747.0,66746.0,0.1]
[1718300016757,0.301435,66747.0,66746.0,0.1]
[1718300017191,0.301435,66747.0,66734.0,0.4728]
[1718300017192,0.0651,66746.0,66734.0,0.4728]
[1718300017400,0.089216,66747.0,66735.0,0.12430835]
[1718300017401,0.0651,66736.0,66735.0,0.12430835]
[1718300017852,0.149846,66735.0,66734.0,0.4728]
[1718300018047,0.212546,66735.0,66734.0,0.4728]
[1718300018254,0.149862,66728.0,66720.0,0.4728]
[1718300018450,0.14987,66725.0,66721.0,0.12434017]
[1718300018655,0.14987,66725.0,66719.0,0.21]
[1718300018656,0.14987,66725.0,66719.0,0.2]
[1718300018830,0.149871,66724.0,66720.0,0.12434707]
[1718300019100,0.149877,66721.0,66720.0,0.12434707]
[1718300019329,0.0642,66719.0,66712.0,0.4728]
[1718300019610,0.0772,66718.0,66712.0,0.4728]
[1718300019815,0.01,66717.0,66712.0,0.4728]
[1718300020021,0.149889,66716.0,66712.0,0.4728]
[1718300020162,0.0666,66715.0,66712.0,0.4728]
[1718300021460,0.1779,66728.0,66706.0,0.01]
[1718300021461,0.1413,66737.0,66714.0,0.08215996]
[1718300021673,0.1413,66737.0,66729.0,0.01]
[1718300021882,0.1413,66737.0,66724.0,0.01]
[1718300021883,0.01,66740.0,66724.0,0.03001]
[1718300022088,0.1418,66728.0,66727.0,0.01]
[1718300022504,0.1418,66728.0,66727.0,0.159864]
[1718300022707,0.0789,66728.0,66727.0,0.159864]
[1718300022904,0.0789,66728.0,66727.0,0.382164]
[1718300023259,0.0789,66728.0,66727.0,0.50648839]
[1718300023473,0.0789,66728.0,66727.0,0.382164]
[1718300023649,0.064,66733.0,66732.0,0.149853]
[1718300023852,0.064,66733.0,66732.0,0.159853]
[1718300024053,0.1506,66744.0,66732.0,0.01]
[1718300024256,0.1506,66744.0,66733.0,0.01]
[1718300024465,0.1506,66744.0,66740.0,0.01]
[1718300024466,0.1406,66744.0,66740.0,0.01]
[1718300024690,0.1406,66744.0,66742.0,0.01]
[1718300024879,0.1406,66744.0,66743.0,0.01]
[1718300025906,0.1406,66744.0,66743.0,0.159828]
[1718300026508,0.1406,66744.0,66740.0,0.01]
[1718300026905,0.1406,66744.0,66741.0,0.149832]
[1718300027112,0.1406,66744.0,66738.0,0.01]
[1718300027317,0.1406,66744.0,66738.0,0.159838]
[1718300027539,0.1406,66744.0,66731.0,0.00085]
[1718300027540,0.002,66744.0,66743.0,0.64071975]
[1718300027808,0.00940501,66768.0,66763.0,0.01]
[1718300027968,0.00940501,66768.0,66763.0,0.159783]
[1718300028171,0.00940501,66768.0,66763.0,0.01]
[1718300028381,0.00940501,66768.0,66763.0,0.159783]
[1718300029603,0.00940501,66768.0,66763.0,0.173783]
[1718300030220,0.00940501,66768.0,66763.0,0.159783]
[1718300030632,0.00940501,66768.0,66757.0,0.01]
[1718300030831,0.082,66763.0,66761.0,0.01]
[1718300032262,0.082,66763.0,66762.0,0.149785]
[1718300032670,0.082,66763.0,66762.0,0.159785]
[1718300033106,0.082,66763.0,66762.0,0.149785]
[1718300033322,0.08190519,66763.0,66762.0,0.159785]
[1718300033781,0.08190519,66763.0,66758.0,0.159793]
[1718300034180,0.08190519,66763.0,66758.0,0.149793]
[1718300034392,0.08190519,66763.0,66759.0,0.149792]
[1718300034586,0.08190519,66763.0,66761.0,0.159787]
[1718300034992,0.08190519,66763.0,66761.0,0.149787]
[1718300035209,0.08190519,66763.0,66762.0,0.014]
[1718300035692,0.08190519,66763.0,66761.0,0.149787]
[1718300036039,0.08190519,66763.0,66761.0,0.163787]
[1718300036440,0.08190519,66763.0,66761.0,0.149787]
[1718300036847,0.08190519,66763.0,66762.0,0.014]
[1718300038275,0.08190519,66763.0,66761.0,0.149787]
[1718300038488,0.08190519,66763.0,66762.0,0.012]
[1718300039040,0.08190519,66763.0,66762.0,0.022]
[1718300039246,0.08190519,66763.0,66762.0,0.171785]
[1718300040268,0.00940501,66768.0,66763.0,0.159783]
[1718300040486,0.00940501,66768.0,66763.0,1.01323693]
[1718300040690,0.00940501,66768.0,66763.0,1.00323693]
[1718300041516,0.00940501,66768.0,66763.0,0.82791413]
[1718300041727,0.00940501,66768.0,66763.0,0.53934713]
[1718300041933,0.00940501,66768.0,66763.0,0.41510293]
[1718300042544,0.00940501,66768.0,66763.0,0.71466993]
[1718300043222,0.00940501,66768.0,66763.0,1.02423693]
[1718300043443,0.00940501,66768.0,66763.0,1.03423693]
[1718300043655,0.00940501,66768.0,66763.0,1.18948871]
[1718300044071,0.00940501,66768.0,66763.0,1.73895571]
[1718300044294,0.00940501,66768.0,66763.0,2.56506471]
[1718300044507,0.00940501,66768.0,66763.0,3.21913286]
[1718300044508,1e-08,66764.0,66763.0,3.21913286]
[1718300044714,1e-08,66764.0,66763.0,3.27570704]
[1718300044936,1e-08,66764.0,66763.0,2.30502386]
[1718300045148,1e-08,66764.0,66763.0,2.40502386]
[1718300045362,1e-08,66764.0,66763.0,2.30802386]
[1718300045768,1e-08,66764.0,66763.0,2.32002386]
[1718300045970,1e-08,66764.0,66763.0,2.30602386]
[1718300046271,1e-08,66764.0,66763.0,2.29402386]
[1718300046494,1e-08,66764.0,66763.0,1.68388871]
[1718300046702,1e-08,66764.0,66763.0,1.04072171]
[1718300046832,1e-08,66764.0,66763.0,1.00297993]
[1718300047013,1e-08,66764.0,66763.0,1.11722133]
[1718300047213,1e-08,66764.0,66763.0,0.99297993]
[1718300047921,1e-08,66764.0,66763.0,0.014]
[1718300048167,0.08150001,66764.0,66763.0,0.014]
[1718300048372,0.08150001,66764.0,66763.0,0.028]
[1718300048578,0.08150001,66764.0,66763.0,0.014]
[1718300048946,0.08150001,66764.0,66763.0,0.028]
[1718300049429,1e-08,66764.0,66763.0,0.173783]
[1718300049634,1e-08,66764.0,66763.0,0.203793]
[1718300049797,1e-08,66764.0,66763.0,0.03901]
[1718300049943,1e-08,66764.0,66760.0,0.11]
[1718300050165,1e-08,66764.0,66763.0,0.014]
[1718300050568,1e-08,66764.0,66761.0,0.149787]
[1718300050760,1e-08,66764.0,66763.0,0.149783]
[1718300050985,1e-08,66764.0,66763.0,0.203793]
[1718300051201,1e-08,66764.0,66763.0,0.196293]
[1718300051402,1e-08,66764.0,66763.0,0.32054485]
[1718300052096,1e-08,66764.0,66763.0,0.33354485]
[1718300052498,1e-08,66764.0,66763.0,0.30654485]
[1718300052946,1e-08,66764.0,66763.0,0.32054485]
[1718300053361,1e-08,66764.0,66763.0,0.60611185]
[1718300053561,1e-08,66764.0,66763.0,0.30654485]
[1718300053813,1e-08,66764.0,66763.0,0.33454485]
[1718300054024,1e-08,66764.0,66763.0,0.038]
[1718300054170,1e-08,66764.0,66763.0,0.187783]
[1718300054381,1e-08,66764.0,66763.0,0.29804381]
[1718300054783,1e-08,66764.0,66763.0,0.31805381]
[1718300054966,1e-08,66764.0,66763.0,0.32805381]
[1718300055168,1e-08,66764.0,66763.0,0.30405381]
[1718300055600,1e-08,66764.0,66763.0,0.31805381]
[1718300055777,1e-08,66764.0,66763.0,0.30405381]
[1718300056407,1e-08,66764.0,66763.0,0.34205381]
[1718300056997,1e-08,66764.0,66763.0,0.32805381]
[1718300057391,1e-08,66764.0,66763.0,0.34205381]
[1718300060282,1e-08,66764.0,66763.0,0.34290381]
[1718300060696,1e-08,66764.0,66763.0,0.31289381]
[1718300060913,1e-08,66764.0,66763.0,0.34290381]
[1718300062872,1e-08,66764.0,66763.0,0.16311081]
[1718300063095,1e-08,66764.0,66763.0,0.16311111]
[1718300063497,1e-08,66764.0,66763.0,0.15311111]
[1718300063670,0.29598101,66764.0,66763.0,0.02885]
[1718300063906,0.30598101,66764.0,66763.0,0.02885]
[1718300064472,0.30598101,66764.0,66763.0,0.01485]
[1718300065524,0.1462,66754.0,66748.0,0.4728]
[1718300065726,0.1462,66754.0,66744.0,0.01819317]
[1718300065940,0.1462,66754.0,66745.0,0.19644438]
[1718300066152,0.149811,66751.0,66746.0,0.18644438]
[1718300066304,0.1462,66754.0,66746.0,0.18644438]
[1718300066541,0.1462,66754.0,66749.0,0.01]
[1718300066796,0.1462,66754.0,66750.0,0.12429756]
[1718300067034,0.1462,66754.0,66753.0,0.01]
[1718300067253,1e-08,66764.0,66758.0,0.149794]
[1718300067254,0.1468,66763.0,66758.0,0.149794]
[1718300067895,0.1468,66763.0,66750.0,0.01]
[1718300068107,0.149789,66761.0,66751.0,0.12428859]
[1718300068374,0.01,66762.0,66751.0,0.27409859]
[1718300068591,0.01,66762.0,66751.0,0.14981]
[1718300069012,0.1568,66763.0,66753.0,0.01]
[1718300069427,0.1568,66763.0,66754.0,0.01]
[1718300069648,0.1468,66763.0,66757.0,0.01]
[1718300070062,0.001,66762.0,66758.0,0.005]
[1718300070299,0.149792,66759.0,66758.0,0.005]
[1718300070764,0.0706,66758.0,66746.0,0.01]
[1718300071116,0.0706,66758.0,66754.0,0.001]
[1718300071117,0.149797,66757.0,66754.0,0.001]
[1718300071337,0.0606,66758.0,66754.0,0.001]
[1718300071968,0.210396,66758.0,66754.0,0.001]
[1718300072366,0.210396,66758.0,66750.0,0.01]
[1718300073398,0.0606,66758.0,66750.0,0.01]
[1718300073642,0.0606,66758.0,66745.0,0.1]
[1718300073643,0.0616,66758.0,66754.0,0.017]
[1718300073795,0.001,66758.0,66757.0,0.01]
[1718300073999,0.0799,66759.0,66750.0,0.01]
[1718300074196,0.0799,66759.0,66750.0,0.012]
[1718300074435,0.149806,66753.0,66750.0,0.023]
[1718300074591,0.149799,66756.0,66750.0,0.023]
[1718300075006,0.159799,66756.0,66750.0,0.023]
[1718300075207,0.149806,66753.0,66750.0,0.023]
[1718300075408,0.001,66758.0,66750.0,0.011]
[1718300075818,0.0799,66759.0,66748.0,0.01]
[1718300076160,0.149824,66745.0,66739.0,0.4728]
[1718300076377,0.149815,66749.0,66740.0,0.12430395]
[1718300077004,0.01,66748.0,66740.0,0.12430395]
[1718300077295,0.16395996,66741.0,66729.0,0.01]
[1718300077545,0.16395996,66741.0,66720.0,0.43295979]
[1718300077546,0.01,66734.0,66720.0,0.43295979]
[1718300077805,0.296353,66732.0,66720.0,0.43295979]
[1718300078040,0.296353,66732.0,66721.0,0.00599509]
[1718300078041,0.1465,66732.0,66721.0,0.00599509]
[1718300078261,0.1465,66732.0,66722.0,0.01]
[1718300078707,0.1465,66732.0,66726.0,0.149866]
[1718300079141,0.1465,66732.0,66722.0,0.159874]
[1718300079349,0.1465,66732.0,66720.0,0.01]
[1718300079553,0.1465,66732.0,66722.0,0.01]
[1718300079969,0.1465,66732.0,66731.0,0.01485]